[Event "Titled Tuesday Blitz May 4 2021"]
[White "Caputcuoglu, Zeki Berke"]
[Black "Klimkowski, Jan"]
[WhiteFideId "34548610"]
[BlackFideId "21856222"]
[WhiteElo "1368"]
[BlackElo "1903"]
[Result "0-1"]
[Round "05"]
[TimeControl "180+1"]
[Date "2021.05.04"]
[WhiteClock "0:00:16"]
[BlackClock "0:00:02"]

1. e4 {[%clk 0:03:00]}  c5 {[%clk 0:02:59]} 2. Nf3 {[%clk 0:03:00]}  d6 {[%clk 0:03:00]} 3. d4 {[%clk 0:03:01]}  cxd4 {[%clk 0:03:01]} 4. Nxd4 {[%clk 0:03:01]}  Nf6 {[%clk 0:03:02]} 5. Nc3 {[%clk 0:03:02]}  a6 {[%clk 0:03:02]} 6. f3 {[%clk 0:03:01]}  e5 {[%clk 0:03:02]} 7. Nb3 {[%clk 0:03:01]}  Be6 {[%clk 0:03:03]} 8. Be3 {[%clk 0:03:01]}  h5 {[%clk 0:03:03]} 9. Qd2 {[%clk 0:03:00]}  Nbd7 {[%clk 0:03:01]} 10. Nd5 {[%clk 0:03:00]}  Bxd5 {[%clk 0:02:59]} 11. exd5 {[%clk 0:03:01]}  g6 {[%clk 0:03:00]} 12. Be2 {[%clk 0:03:01]}  Bg7 {[%clk 0:03:00]} 13. O-O {[%clk 0:03:02]}  O-O {[%clk 0:03:01]} 14. c4 {[%clk 0:03:02]}  b6 {[%clk 0:03:01]} 15. Rac1 {[%clk 0:02:58]}  Rc8 {[%clk 0:02:58]} 16. Kh1 {[%clk 0:02:52]}  Re8 {[%clk 0:02:54]} 17. g4 {[%clk 0:02:41]}  hxg4 {[%clk 0:02:43]} 18. fxg4 {[%clk 0:02:42]}  Ne4 {[%clk 0:02:43]} 19. Qc2 {[%clk 0:02:40]}  Nec5 {[%clk 0:02:26]} 20. Nxc5 {[%clk 0:02:38]}  bxc5 {[%clk 0:02:27]} 21. Qe4 {[%clk 0:02:31]}  Rb8 {[%clk 0:02:10]} 22. b3 {[%clk 0:02:31]}  Qh4 {[%clk 0:02:07]} 23. Bf2 {[%clk 0:02:26]}  Qh6 {[%clk 0:02:02]} 24. Be3 {[%clk 0:02:26]}  Qh4 {[%clk 0:01:58]} 25. Bf2 {[%clk 0:02:25]}  Qh3 {[%clk 0:01:57]} 26. g5 {[%clk 0:02:15]}  Qf5 {[%clk 0:01:46]} 27. Qh4 {[%clk 0:02:00]}  Qf4 {[%clk 0:01:25]} 28. Qh3 {[%clk 0:01:56]}  Re7 {[%clk 0:01:08]} 29. Bxc5 {[%clk 0:01:18]}  Nxc5 {[%clk 0:01:02]} 30. Rxf4 {[%clk 0:01:18]}  exf4 {[%clk 0:01:02]} 31. Qg2 {[%clk 0:01:01]}  Re3 {[%clk 0:00:59]} 32. Rf1 {[%clk 0:00:56]}  Rbe8 {[%clk 0:00:58]} 33. Bg4 {[%clk 0:00:57]}  Nd3 {[%clk 0:00:48]} 34. h4 {[%clk 0:00:52]}  Rg3 {[%clk 0:00:46]} 35. Qd2 {[%clk 0:00:38]}  Ree3 {[%clk 0:00:45]} 36. Rg1 {[%clk 0:00:31]}  Bc3 {[%clk 0:00:36]} 37. Qc2 {[%clk 0:00:23]}  Rxg1+ {[%clk 0:00:21]} 38. Kxg1 {[%clk 0:00:24]}  Bd4 {[%clk 0:00:22]} 39. Kf1 {[%clk 0:00:23]}  Re1+ {[%clk 0:00:21]} 40. Kg2 {[%clk 0:00:23]}  Rg1+ {[%clk 0:00:17]} 41. Kh2 {[%clk 0:00:21]}  Ne1 {[%clk 0:00:15]} 42. Qe2 {[%clk 0:00:20]}  Be3 {[%clk 0:00:08]} 43. Bf3 {[%clk 0:00:19]}  Rg3 {[%clk 0:00:06]} 44. Qxe1 {[%clk 0:00:18]}  Rxf3 {[%clk 0:00:06]} 45. b4 {[%clk 0:00:18]}  Rf2+ {[%clk 0:00:04]} 46. Kh1 {[%clk 0:00:17]}  Rc2 {[%clk 0:00:05]} 47. Qf1 {[%clk 0:00:14]}  Rc1 {[%clk 0:00:05]} 48. Qxc1 {[%clk 0:00:14]}  Bxc1 {[%clk 0:00:06]} 49. c5 {[%clk 0:00:15]}  dxc5 {[%clk 0:00:06]} 50. bxc5 {[%clk 0:00:15]}  Kf8 {[%clk 0:00:06]} 51. Kg2 {[%clk 0:00:15]}  Ke8 {[%clk 0:00:07]} 52. Kf3 {[%clk 0:00:15]}  Kd7 {[%clk 0:00:08]} 53. Ke4 {[%clk 0:00:15]}  Be3 {[%clk 0:00:08]} 54. c6+ {[%clk 0:00:14]}  Kd6 {[%clk 0:00:08]} 55. Kf3 {[%clk 0:00:14]}  Bb6 {[%clk 0:00:07]} 56. Kxf4 {[%clk 0:00:14]}  Kxd5 {[%clk 0:00:07]} 57. h5 {[%clk 0:00:15]}  gxh5 {[%clk 0:00:07]} 58. Kg3 {[%clk 0:00:15]}  Kxc6 {[%clk 0:00:06]} 59. Kh4 {[%clk 0:00:15]}  Kd6 {[%clk 0:00:05]} 60. Kxh5 {[%clk 0:00:16]}  Ke6 {[%clk 0:00:03]} 61. Kh6 {[%clk 0:00:16]}  Be3 {[%clk 0:00:02]} 62. Kg7 {[%clk 0:00:16]}  Bxg5 {[%clk 0:00:02]} 0-1


[Site "https://www.chess.com"]

[Event "Titled Tuesday Blitz May 4 2021"]
[White "Cella, Glaucio Dalla Cortt"]
[Black "Lomaia, Diana"]
[WhiteFideId "2119455"]
[BlackFideId "13612476"]
[WhiteElo "2011"]
[BlackElo "1742"]
[Result "0-1"]
[Round "05"]
[TimeControl "180+1"]
[Date "2021.05.04"]
[WhiteClock "0:00:05"]
[BlackClock "0:00:22"]

1. e4 {[%clk 0:01:25]}  c5 {[%clk 0:02:55]} 2. Nf3 {[%clk 0:01:24]}  e6 {[%clk 0:02:54]} 3. c3 {[%clk 0:01:25]}  Nf6 {[%clk 0:02:52]} 4. e5 {[%clk 0:01:24]}  Nd5 {[%clk 0:02:53]} 5. d4 {[%clk 0:01:24]}  cxd4 {[%clk 0:02:54]} 6. cxd4 {[%clk 0:01:25]}  Nc6 {[%clk 0:02:54]} 7. Nc3 {[%clk 0:01:25]}  Nxc3 {[%clk 0:02:53]} 8. bxc3 {[%clk 0:01:25]}  d5 {[%clk 0:02:53]} 9. Bd3 {[%clk 0:01:25]}  Be7 {[%clk 0:02:46]} 10. O-O {[%clk 0:01:23]}  O-O {[%clk 0:02:45]} 11. Rb1 {[%clk 0:01:09]}  f6 {[%clk 0:02:37]} 12. exf6 {[%clk 0:01:05]}  Bxf6 {[%clk 0:02:36]} 13. Re1 {[%clk 0:01:01]}  Qd6 {[%clk 0:02:31]} 14. Qe2 {[%clk 0:00:52]}  b6 {[%clk 0:02:20]} 15. Ne5 {[%clk 0:00:45]}  Bxe5 {[%clk 0:02:16]} 16. dxe5 {[%clk 0:00:44]}  Qc7 {[%clk 0:02:11]} 17. f4 {[%clk 0:00:13]}  Ne7 {[%clk 0:02:05]} 18. Ba3 {[%clk 0:00:12]}  Rxf4 {[%clk 0:02:01]} 19. Bxe7 {[%clk 0:00:10]}  Qxe7 {[%clk 0:02:01]} 20. Rf1 {[%clk 0:00:09]}  Rxf1+ {[%clk 0:01:49]} 21. Rxf1 {[%clk 0:00:09]}  Bd7 {[%clk 0:01:48]} 22. Qh5 {[%clk 0:00:09]}  g6 {[%clk 0:01:35]} 23. Qh6 {[%clk 0:00:09]}  Qg7 {[%clk 0:01:34]} 24. Qg5 {[%clk 0:00:08]}  Rf8 {[%clk 0:01:34]} 25. Rf6 {[%clk 0:00:08]}  Rxf6 {[%clk 0:01:06]} 26. exf6 {[%clk 0:00:08]}  Qf7 {[%clk 0:01:05]} 27. h4 {[%clk 0:00:08]}  Be8 {[%clk 0:00:59]} 28. h5 {[%clk 0:00:08]}  a5 {[%clk 0:00:55]} 29. hxg6 {[%clk 0:00:08]}  hxg6 {[%clk 0:00:53]} 30. g4 {[%clk 0:00:09]}  b5 {[%clk 0:00:48]} 31. a3 {[%clk 0:00:09]}  Qa7+ {[%clk 0:00:46]} 32. Kg2 {[%clk 0:00:09]}  Qh7 {[%clk 0:00:38]} 33. Kg3 {[%clk 0:00:08]}  Qc7+ {[%clk 0:00:27]} 34. Qf4 {[%clk 0:00:07]}  e5 {[%clk 0:00:25]} 35. Qh6 {[%clk 0:00:06]}  e4+ {[%clk 0:00:25]} 36. Kh4 {[%clk 0:00:05]}  exd3 {[%clk 0:00:25]} 37. Kg5 {[%clk 0:00:05]}  Qe5+ {[%clk 0:00:23]} 38. Kh4 {[%clk 0:00:05]}  Qxf6+ {[%clk 0:00:24]} 39. g5 {[%clk 0:00:05]}  Qf4+ {[%clk 0:00:23]} 40. Kh3 {[%clk 0:00:05]}  d2 {[%clk 0:00:22]} 0-1


[Site "https://www.chess.com"]

[Event "Titled Tuesday Blitz May 4 2021"]
[White "Chandratreya, Prachiti"]
[Black "Ljukin, Sergei"]
[WhiteFideId "46611215"]
[BlackFideId "14102200"]
[WhiteElo "1737"]
[BlackElo "2287"]
[Result "1-0"]
[Round "05"]
[TimeControl "180+1"]
[Date "2021.05.04"]
[WhiteClock "0:00:27"]
[BlackClock "0:00:06"]

1. e4 {[%clk 0:03:00]}  e6 {[%clk 0:02:59]} 2. Nf3 {[%clk 0:02:59]}  d5 {[%clk 0:02:59]} 3. Nc3 {[%clk 0:02:59]}  Nf6 {[%clk 0:02:59]} 4. e5 {[%clk 0:02:59]}  Nfd7 {[%clk 0:02:59]} 5. d4 {[%clk 0:02:58]}  c5 {[%clk 0:02:59]} 6. Ne2 {[%clk 0:02:58]}  cxd4 {[%clk 0:02:58]} 7. Nexd4 {[%clk 0:02:58]}  Nc6 {[%clk 0:02:59]} 8. c3 {[%clk 0:02:57]}  Ndxe5 {[%clk 0:02:57]} 9. Be2 {[%clk 0:02:50]}  Nxf3+ {[%clk 0:02:54]} 10. Bxf3 {[%clk 0:02:50]}  Bd6 {[%clk 0:02:53]} 11. O-O {[%clk 0:02:49]}  O-O {[%clk 0:02:53]} 12. g3 {[%clk 0:02:48]}  a6 {[%clk 0:02:47]} 13. Bg2 {[%clk 0:02:48]}  e5 {[%clk 0:02:28]} 14. Nb3 {[%clk 0:02:46]}  e4 {[%clk 0:02:26]} 15. Qxd5 {[%clk 0:02:44]}  Be6 {[%clk 0:02:13]} 16. Qxe4 {[%clk 0:02:43]}  Re8 {[%clk 0:02:12]} 17. Qc2 {[%clk 0:02:41]}  Qc8 {[%clk 0:02:06]} 18. Be3 {[%clk 0:02:35]}  Bf5 {[%clk 0:02:00]} 19. Qd2 {[%clk 0:02:35]}  Rd8 {[%clk 0:02:01]} 20. Qe2 {[%clk 0:02:30]}  Ne5 {[%clk 0:02:00]} 21. Rad1 {[%clk 0:02:11]}  Bg4 {[%clk 0:01:58]} 22. f3 {[%clk 0:02:11]}  Bf5 {[%clk 0:01:58]} 23. Nd4 {[%clk 0:02:07]}  Bd7 {[%clk 0:01:45]} 24. Qf2 {[%clk 0:01:48]}  Nc4 {[%clk 0:01:40]} 25. Bc1 {[%clk 0:01:44]}  Bc5 {[%clk 0:01:36]} 26. Kh1 {[%clk 0:01:33]}  h5 {[%clk 0:01:21]} 27. Bg5 {[%clk 0:01:17]}  f6 {[%clk 0:01:19]} 28. Bc1 {[%clk 0:01:16]}  Ne5 {[%clk 0:01:11]} 29. Qc2 {[%clk 0:01:04]}  h4 {[%clk 0:00:59]} 30. f4 {[%clk 0:00:55]}  h3 {[%clk 0:00:39]} 31. Bd5+ {[%clk 0:00:49]}  Nf7 {[%clk 0:00:38]} 32. Qb3 {[%clk 0:00:44]}  Rf8 {[%clk 0:00:35]} 33. Qxb7 {[%clk 0:00:34]}  Qxb7 {[%clk 0:00:19]} 34. Bxb7 {[%clk 0:00:33]}  Ra7 {[%clk 0:00:19]} 35. Bf3 {[%clk 0:00:33]}  a5 {[%clk 0:00:13]} 36. Nb3 {[%clk 0:00:32]}  Bb6 {[%clk 0:00:12]} 37. Nd4 {[%clk 0:00:28]}  Nd6 {[%clk 0:00:07]} 38. Nc6 {[%clk 0:00:27]}  Bxc6 {[%clk 0:00:06]} 39. Bxc6 {[%clk 0:00:27]}  Nc4 {[%clk 0:00:06]} 40. Bd5+ {[%clk 0:00:27]} 1-0


[Site "https://www.chess.com"]

[Event "Titled Tuesday Blitz May 4 2021"]
[White "Coelho, Ramyres Santana"]
[Black "Kononenko, Dmitry"]
[WhiteFideId "2120690"]
[BlackFideId "14113538"]
[WhiteElo "1888"]
[BlackElo "2289"]
[Result "0-1"]
[Round "05"]
[TimeControl "180+1"]
[Date "2021.05.04"]
[WhiteClock "0:00:07"]
[BlackClock "0:00:30"]

1. e4 {[%clk 0:02:59]}  c6 {[%clk 0:02:59]} 2. d4 {[%clk 0:02:58]}  d5 {[%clk 0:03:00]} 3. Nc3 {[%clk 0:02:59]}  dxe4 {[%clk 0:03:00]} 4. Nxe4 {[%clk 0:03:00]}  Bf5 {[%clk 0:03:00]} 5. Ng3 {[%clk 0:02:59]}  Bg6 {[%clk 0:02:59]} 6. Nf3 {[%clk 0:02:59]}  Nd7 {[%clk 0:02:59]} 7. h4 {[%clk 0:02:59]}  h6 {[%clk 0:02:59]} 8. h5 {[%clk 0:02:59]}  Bh7 {[%clk 0:02:59]} 9. Bd3 {[%clk 0:02:59]}  Bxd3 {[%clk 0:03:00]} 10. Qxd3 {[%clk 0:03:00]}  e6 {[%clk 0:03:01]} 11. Bd2 {[%clk 0:03:00]}  Ngf6 {[%clk 0:03:00]} 12. O-O-O {[%clk 0:02:59]}  Be7 {[%clk 0:03:01]} 13. Ne4 {[%clk 0:02:59]}  O-O {[%clk 0:02:59]} 14. Nxf6+ {[%clk 0:02:55]}  Nxf6 {[%clk 0:02:59]} 15. Ne5 {[%clk 0:02:54]}  c5 {[%clk 0:02:59]} 16. Bc3 {[%clk 0:02:50]}  Nd5 {[%clk 0:02:57]} 17. g3 {[%clk 0:02:36]}  Bf6 {[%clk 0:02:50]} 18. dxc5 {[%clk 0:02:29]}  Qc7 {[%clk 0:02:43]} 19. f4 {[%clk 0:02:17]}  Rfd8 {[%clk 0:02:26]} 20. Qf3 {[%clk 0:01:59]}  Qxc5 {[%clk 0:02:21]} 21. Bd4 {[%clk 0:01:53]}  Qa5 {[%clk 0:02:15]} 22. Kb1 {[%clk 0:01:48]}  Rac8 {[%clk 0:02:01]} 23. c3 {[%clk 0:01:36]}  b5 {[%clk 0:01:56]} 24. g4 {[%clk 0:01:33]}  b4 {[%clk 0:01:55]} 25. cxb4 {[%clk 0:01:20]}  Nxb4 {[%clk 0:01:53]} 26. a3 {[%clk 0:01:13]}  Nd5 {[%clk 0:01:47]} 27. g5 {[%clk 0:01:08]}  Bxe5 {[%clk 0:01:41]} 28. Bxe5 {[%clk 0:01:02]}  hxg5 {[%clk 0:01:24]} 29. fxg5 {[%clk 0:00:58]}  Ne7 {[%clk 0:01:24]} 30. Rxd8+ {[%clk 0:00:50]}  Rxd8 {[%clk 0:01:21]} 31. Bc3 {[%clk 0:00:49]}  Qf5+ {[%clk 0:01:16]} 32. Qxf5 {[%clk 0:00:49]}  Nxf5 {[%clk 0:01:17]} 33. h6 {[%clk 0:00:48]}  gxh6 {[%clk 0:01:15]} 34. gxh6 {[%clk 0:00:49]}  Kh7 {[%clk 0:01:15]} 35. Bf6 {[%clk 0:00:46]}  Rd2 {[%clk 0:01:02]} 36. Rc1 {[%clk 0:00:39]}  Rd7 {[%clk 0:01:00]} 37. Rc8 {[%clk 0:00:36]}  Kxh6 {[%clk 0:00:58]} 38. Rh8+ {[%clk 0:00:36]}  Kg6 {[%clk 0:00:58]} 39. Bc3 {[%clk 0:00:36]}  f6 {[%clk 0:00:54]} 40. Rg8+ {[%clk 0:00:35]}  Kf7 {[%clk 0:00:54]} 41. Rc8 {[%clk 0:00:32]}  e5 {[%clk 0:00:54]} 42. Rc6 {[%clk 0:00:32]}  Nd6 {[%clk 0:00:47]} 43. b4 {[%clk 0:00:31]}  Ke6 {[%clk 0:00:32]} 44. a4 {[%clk 0:00:30]}  Kd5 {[%clk 0:00:32]} 45. Ra6 {[%clk 0:00:30]}  Kc4 {[%clk 0:00:30]} 46. Rc6+ {[%clk 0:00:28]}  Kb3 {[%clk 0:00:29]} 47. a5 {[%clk 0:00:21]}  Ne4 {[%clk 0:00:30]} 48. Bb2 {[%clk 0:00:18]}  Rd1+ {[%clk 0:00:30]} 49. Bc1 {[%clk 0:00:17]}  Nc3+ {[%clk 0:00:30]} 50. Rxc3+ {[%clk 0:00:15]}  Kxc3 {[%clk 0:00:31]} 51. b5 {[%clk 0:00:16]}  Kb4 {[%clk 0:00:30]} 52. b6 {[%clk 0:00:16]}  axb6 {[%clk 0:00:30]} 53. axb6 {[%clk 0:00:14]}  Kb5 {[%clk 0:00:30]} 54. b7 {[%clk 0:00:14]}  Rd8 {[%clk 0:00:30]} 55. Be3 {[%clk 0:00:08]}  Ka6 {[%clk 0:00:29]} 56. Kc2 {[%clk 0:00:09]}  Kxb7 {[%clk 0:00:30]} 57. Kc3 {[%clk 0:00:08]}  Kc6 {[%clk 0:00:30]} 58. Bb6 {[%clk 0:00:07]}  Kxb6 {[%clk 0:00:30]} 0-1


[Site "https://www.chess.com"]

[Event "Titled Tuesday Blitz May 4 2021"]
[White "Costachi, Mihnea"]
[Black "Quparadze, Giga"]
[WhiteFideId "1217518"]
[BlackFideId "13602250"]
[WhiteElo "2479"]
[BlackElo "2658"]
[Result "0-1"]
[Round "05"]
[TimeControl "180+1"]
[Date "2021.05.04"]
[WhiteClock "0:00:45"]
[BlackClock "0:01:58"]

1. d4 {[%clk 0:03:00]}  Nf6 {[%clk 0:02:59]} 2. c4 {[%clk 0:03:01]}  e6 {[%clk 0:02:59]} 3. Nf3 {[%clk 0:03:00]}  b6 {[%clk 0:02:58]} 4. g3 {[%clk 0:03:00]}  Bb4+ {[%clk 0:02:57]} 5. Bd2 {[%clk 0:02:59]}  c5 {[%clk 0:02:57]} 6. Bxb4 {[%clk 0:02:57]}  cxb4 {[%clk 0:02:57]} 7. Bg2 {[%clk 0:02:58]}  Bb7 {[%clk 0:02:57]} 8. O-O {[%clk 0:02:59]}  O-O {[%clk 0:02:55]} 9. a3 {[%clk 0:02:59]}  bxa3 {[%clk 0:02:55]} 10. Rxa3 {[%clk 0:02:57]}  a5 {[%clk 0:02:55]} 11. Nc3 {[%clk 0:02:58]}  Na6 {[%clk 0:02:53]} 12. Qd2 {[%clk 0:02:49]}  Nb4 {[%clk 0:02:52]} 13. Nb5 {[%clk 0:02:46]}  d5 {[%clk 0:02:47]} 14. Ne5 {[%clk 0:02:44]}  Ba6 {[%clk 0:02:44]} 15. b3 {[%clk 0:02:41]}  Bxb5 {[%clk 0:02:43]} 16. cxb5 {[%clk 0:02:41]}  Qe8 {[%clk 0:02:43]} 17. Nd3 {[%clk 0:02:31]}  Qxb5 {[%clk 0:02:41]} 18. Nxb4 {[%clk 0:02:31]}  axb4 {[%clk 0:02:40]} 19. Rxa8 {[%clk 0:02:32]}  Rxa8 {[%clk 0:02:40]} 20. Rc1 {[%clk 0:02:33]}  h6 {[%clk 0:02:40]} 21. e3 {[%clk 0:02:26]}  Ne4 {[%clk 0:02:39]} 22. Bxe4 {[%clk 0:02:25]}  dxe4 {[%clk 0:02:40]} 23. Qc2 {[%clk 0:02:25]}  Qd5 {[%clk 0:02:38]} 24. Qc4 {[%clk 0:02:19]}  Ra3 {[%clk 0:02:36]} 25. Qxb4 {[%clk 0:02:09]}  Rxb3 {[%clk 0:02:34]} 26. Qc4 {[%clk 0:01:15]}  Qxc4 {[%clk 0:02:32]} 27. Rxc4 {[%clk 0:01:15]}  Kh7 {[%clk 0:02:31]} 28. Rc7 {[%clk 0:01:12]}  Kg6 {[%clk 0:02:31]} 29. g4 {[%clk 0:01:09]}  Kf6 {[%clk 0:02:27]} 30. h4 {[%clk 0:01:08]}  g5 {[%clk 0:02:24]} 31. h5 {[%clk 0:01:08]}  b5 {[%clk 0:02:23]} 32. Kg2 {[%clk 0:01:08]}  b4 {[%clk 0:02:23]} 33. Rb7 {[%clk 0:01:05]}  Rb1 {[%clk 0:02:22]} 34. Kh2 {[%clk 0:01:06]}  b3 {[%clk 0:02:22]} 35. Kg2 {[%clk 0:01:06]}  b2 {[%clk 0:02:01]} 36. Kh2 {[%clk 0:01:04]}  Kg7 {[%clk 0:02:01]} 37. Kg2 {[%clk 0:01:01]}  Kf8 {[%clk 0:02:01]} 38. Kh2 {[%clk 0:00:59]}  Ke8 {[%clk 0:01:56]} 39. Kg2 {[%clk 0:00:59]}  f5 {[%clk 0:01:55]} 40. gxf5 {[%clk 0:00:53]}  exf5 {[%clk 0:01:56]} 41. d5 {[%clk 0:00:54]}  f4 {[%clk 0:01:55]} 42. exf4 {[%clk 0:00:53]}  gxf4 {[%clk 0:01:55]} 43. d6 {[%clk 0:00:47]}  f3+ {[%clk 0:01:55]} 44. Kh2 {[%clk 0:00:45]}  e3 {[%clk 0:01:55]} 45. Re7+ {[%clk 0:00:34]}  Kd8 {[%clk 0:01:54]} 46. Rxe3 {[%clk 0:00:35]}  Rd1 {[%clk 0:01:54]} 47. Rb3 {[%clk 0:00:33]}  b1=Q {[%clk 0:01:53]} 48. Rxb1 {[%clk 0:00:34]}  Rxb1 {[%clk 0:01:53]} 49. Kg3 {[%clk 0:00:35]}  Rb5 {[%clk 0:01:54]} 50. Kf4 {[%clk 0:00:36]}  Rxh5 {[%clk 0:01:53]} 51. Kxf3 {[%clk 0:00:36]}  Rb5 {[%clk 0:01:54]} 52. Ke4 {[%clk 0:00:37]}  Kd7 {[%clk 0:01:55]} 53. f4 {[%clk 0:00:37]}  Kxd6 {[%clk 0:01:55]} 54. Kf3 {[%clk 0:00:38]}  Ke7 {[%clk 0:01:56]} 55. Kg4 {[%clk 0:00:39]}  Kf6 {[%clk 0:01:56]} 56. f5 {[%clk 0:00:40]}  Rxf5 {[%clk 0:01:55]} 57. Kh4 {[%clk 0:00:41]}  Rg5 {[%clk 0:01:55]} 58. Kh3 {[%clk 0:00:41]}  Kf5 {[%clk 0:01:56]} 59. Kh4 {[%clk 0:00:42]}  Kf4 {[%clk 0:01:57]} 60. Kh3 {[%clk 0:00:43]}  Kf3 {[%clk 0:01:57]} 61. Kh4 {[%clk 0:00:44]}  Rf5 {[%clk 0:01:57]} 62. Kh3 {[%clk 0:00:45]}  Rh5# {[%clk 0:01:58]} 0-1


[Site "https://www.chess.com"]

[Event "Titled Tuesday Blitz May 4 2021"]
[White "Csonka, Balazs"]
[Black "Angel_Hranitel_37"]
[WhiteFideId "742910"]
[WhiteElo "2404"]
[BlackElo "2528"]
[Result "0-1"]
[Round "05"]
[TimeControl "180+1"]
[Date "2021.05.04"]
[WhiteClock "0:00:01"]
[BlackClock "0:00:18"]

1. e4 {[%clk 0:03:00]}  c5 {[%clk 0:02:57]} 2. Nf3 {[%clk 0:03:00]}  e6 {[%clk 0:02:55]} 3. d4 {[%clk 0:03:00]}  cxd4 {[%clk 0:02:56]} 4. Nxd4 {[%clk 0:03:01]}  Nf6 {[%clk 0:02:57]} 5. Nc3 {[%clk 0:03:01]}  Nc6 {[%clk 0:02:58]} 6. Nxc6 {[%clk 0:02:52]}  bxc6 {[%clk 0:02:58]} 7. e5 {[%clk 0:02:53]}  Nd5 {[%clk 0:02:58]} 8. Ne4 {[%clk 0:02:53]}  Qc7 {[%clk 0:02:59]} 9. f4 {[%clk 0:02:52]}  Qb6 {[%clk 0:02:59]} 10. c4 {[%clk 0:02:52]}  Bb4+ {[%clk 0:02:59]} 11. Ke2 {[%clk 0:02:52]}  f5 {[%clk 0:03:00]} 12. exf6 {[%clk 0:02:52]}  Nxf6 {[%clk 0:03:00]} 13. Be3 {[%clk 0:02:50]}  Qd8 {[%clk 0:03:00]} 14. Nd6+ {[%clk 0:02:50]}  Bxd6 {[%clk 0:03:01]} 15. Qxd6 {[%clk 0:02:50]}  Bb7 {[%clk 0:03:01]} 16. Rd1 {[%clk 0:02:43]}  Rc8 {[%clk 0:03:02]} 17. Rg1 {[%clk 0:02:42]}  c5 {[%clk 0:02:53]} 18. g4 {[%clk 0:02:36]}  h6 {[%clk 0:02:46]} 19. h4 {[%clk 0:01:48]}  Ne4 {[%clk 0:02:22]} 20. Qe5 {[%clk 0:01:45]}  O-O {[%clk 0:02:20]} 21. g5 {[%clk 0:01:17]}  Rf5 {[%clk 0:02:19]} 22. gxh6 {[%clk 0:00:59]}  Rxe5 {[%clk 0:02:14]} 23. Rxg7+ {[%clk 0:00:58]}  Kh8 {[%clk 0:01:24]} 24. fxe5 {[%clk 0:00:44]}  Bc6 {[%clk 0:01:19]} 25. Bg2 {[%clk 0:00:37]}  Qxh4 {[%clk 0:01:19]} 26. Bxe4 {[%clk 0:00:24]}  Qxe4 {[%clk 0:01:12]} 27. Rf1 {[%clk 0:00:06]}  Qxc4+ {[%clk 0:00:40]} 28. Ke1 {[%clk 0:00:04]}  Bb5 {[%clk 0:00:21]} 29. Rf2 {[%clk 0:00:04]}  Qe4 {[%clk 0:00:21]} 30. Rg3 {[%clk 0:00:02]}  Rg8 {[%clk 0:00:17]} 31. Rxg8+ {[%clk 0:00:01]}  Kxg8 {[%clk 0:00:18]} 0-1


[Site "https://www.chess.com"]

[Event "Titled Tuesday Blitz May 4 2021"]
[White "Czopor, Maciej"]
[Black "Iniyan, P"]
[WhiteFideId "21805431"]
[BlackFideId "25002767"]
[WhiteElo "1939"]
[BlackElo "2400"]
[Result "0-1"]
[Round "05"]
[TimeControl "180+1"]
[Date "2021.05.04"]
[WhiteClock "0:00:04"]
[BlackClock "0:00:09"]

1. e4 {[%clk 0:03:00]}  c5 {[%clk 0:02:58]} 2. Nf3 {[%clk 0:03:00]}  d6 {[%clk 0:02:58]} 3. d3 {[%clk 0:03:01]}  Nf6 {[%clk 0:02:58]} 4. g3 {[%clk 0:02:59]}  g6 {[%clk 0:02:59]} 5. Bg2 {[%clk 0:02:59]}  Bg7 {[%clk 0:02:59]} 6. O-O {[%clk 0:03:00]}  O-O {[%clk 0:02:59]} 7. c3 {[%clk 0:03:00]}  Nc6 {[%clk 0:03:00]} 8. Re1 {[%clk 0:02:59]}  Rb8 {[%clk 0:02:58]} 9. d4 {[%clk 0:03:00]}  cxd4 {[%clk 0:02:45]} 10. cxd4 {[%clk 0:03:00]}  d5 {[%clk 0:02:45]} 11. e5 {[%clk 0:02:45]}  Ne4 {[%clk 0:02:45]} 12. Nc3 {[%clk 0:02:43]}  Nxc3 {[%clk 0:02:25]} 13. bxc3 {[%clk 0:02:44]}  b6 {[%clk 0:02:21]} 14. Bg5 {[%clk 0:02:39]}  h6 {[%clk 0:02:20]} 15. Be3 {[%clk 0:02:38]}  Na5 {[%clk 0:02:20]} 16. Nd2 {[%clk 0:02:36]}  Ba6 {[%clk 0:02:18]} 17. h4 {[%clk 0:02:29]}  Rc8 {[%clk 0:02:17]} 18. Nb3 {[%clk 0:02:11]}  Nc4 {[%clk 0:02:02]} 19. Bf4 {[%clk 0:02:08]}  e6 {[%clk 0:02:01]} 20. Qc1 {[%clk 0:02:06]}  Kh7 {[%clk 0:02:01]} 21. a4 {[%clk 0:02:06]}  Qc7 {[%clk 0:01:50]} 22. h5 {[%clk 0:01:56]}  g5 {[%clk 0:01:50]} 23. Qc2+ {[%clk 0:01:56]}  Kg8 {[%clk 0:01:48]} 24. Bc1 {[%clk 0:01:57]}  Rfe8 {[%clk 0:01:37]} 25. a5 {[%clk 0:01:42]}  Bb5 {[%clk 0:01:17]} 26. axb6 {[%clk 0:01:35]}  axb6 {[%clk 0:01:18]} 27. f4 {[%clk 0:01:35]}  gxf4 {[%clk 0:01:08]} 28. Bxf4 {[%clk 0:01:36]}  Ra8 {[%clk 0:01:05]} 29. Rxa8 {[%clk 0:01:27]}  Rxa8 {[%clk 0:01:06]} 30. Qc1 {[%clk 0:01:28]}  Kh7 {[%clk 0:00:54]} 31. Bf1 {[%clk 0:01:09]}  Na3 {[%clk 0:00:53]} 32. Bh3 {[%clk 0:00:55]}  Bd3 {[%clk 0:00:53]} 33. Re3 {[%clk 0:00:53]}  Bc2 {[%clk 0:00:25]} 34. Nd2 {[%clk 0:00:49]}  b5 {[%clk 0:00:25]} 35. c4 {[%clk 0:00:43]}  b4 {[%clk 0:00:14]} 36. c5 {[%clk 0:00:18]}  Bf5 {[%clk 0:00:14]} 37. Nb3 {[%clk 0:00:17]}  Bxh3 {[%clk 0:00:13]} 38. g4 {[%clk 0:00:15]}  Bxg4 {[%clk 0:00:13]} 39. Rg3 {[%clk 0:00:15]}  Bf5 {[%clk 0:00:12]} 40. Kh2 {[%clk 0:00:09]}  Rg8 {[%clk 0:00:12]} 41. Qg1 {[%clk 0:00:07]}  Qd8 {[%clk 0:00:10]} 42. Qg2 {[%clk 0:00:04]}  Qh4+ {[%clk 0:00:09]} 0-1


[Site "https://www.chess.com"]